[Event "European Womens-ch 2025"]
[Site "Rhodes"]
[Date "2025.03.31"]
[Round "1.47"]
[White "Smietanska, Wiktoria"]
[Black "Alexandri, Dimitra"]
[Result "1-0"]
[Annotator "RC"]
[ECO "E92"]
[WhiteElo "2254"]
[BlackElo "1995"]
[PlyCount "165"]
[EventDate "2025.03.29"]
[EventType "swiss"]
[EventCountry "GRE"]
[SourceTitle "playchess.com"]
[Source "ChessBase"]
[SourceQuality "1"]
[TimeControl "40/5400+30:1800+30"]

1. c4 {[%emt 0:00:03]} Nf6 {[%emt 0:00:14]} 2. Nc3 {[%emt 0:00:17]} g6 {[%emt 0:00:09]} 3. d4 {[%emt 0:00:21]} Bg7 {[%emt 0:00:09]} 4. Nf3 {[%emt 0:00:19]} O-O {[%emt 0:00:18]} 5. e4 {[%emt 0:00:10]} d6 {[%emt 0:00:14]} 6. Be2 {[%emt 0:00:29]} e5 {[%emt 0:00:22]} 7. Be3 {[%emt 0:00:15]} Ng4 {[%emt 0:01:58]} 8. Bg5 {[%emt 0:00:12]} f6 {[%emt 0:01:11]} 9. Bc1 {[%emt 0:00:45]} Nc6 {[%emt 0:13:56]} 10. d5 {[%emt 0:00:09]} Ne7 {[%emt 0:00:28]} 11. h3 {[%emt 0:00:11]} Nh6 {[%emt 0:00:12]} 12. h4 {[%emt 0:00:07]} a5 {[%emt 0:10:32]} 13. h5 {[%emt 0:02:46]} g5 {[%emt 0:00:42]} 14. Nh2 {[%emt 0:02:00]} Bd7 {[%emt 0:04:05]} 15. Be3 {[%emt 0:02:16]} Qc8 {[%emt 0:06:54]} 16. c5 {[%emt 0:02:12]} Nf7 {[%emt 0:03:06]} 17. Rc1 {[%emt 0:05:04]} h6 {[%emt 0:11:33]} 18. Na4 {[%emt 0:06:14]} Qe8 {[%emt 0:02:30]} 19. b3 {[%emt 0:04:08]} Qd8 {[%emt 0:06:36]} 20. Qc2 {[%emt 0:03:20]} Rc8 {[%emt 0:09:22]} 21. Bd2 {[%emt 0:04:30]} Bxa4 {[%emt 0:03:52]} 22. bxa4 {[%emt 0:00:04]} dxc5 {[%emt 0:00:17]} 23. Bg4 {[%emt 0:10:28]} b6 {[%emt 0:02:24]} 24. Bxc8 {[%emt 0:00:43]} Qxc8 {[%emt 0:00:02]} 25. O-O {[%emt 0:03:10]} Nd6 {[%emt 0:00:38]} 26. Rfe1 {[%emt 0:07:40]} Qe8 {[%emt 0:04:37]} 27. Qd1 {[%emt 0:01:57]} Qf7 {[%emt 0:02:34]} 28. Ng4 {[%emt 0:06:01]} Kh8 {[%emt 0:02:54]} 29. Qf3 {[%emt 0:02:03]} Qe8 {[%emt 0:01:03]} 30. g3 {[%emt 0:04:49]} Qxa4 {[%emt 0:02:51]} 31. Qd1 {[%emt 0:05:19]} Qe8 {[%emt 0:03:47]} 32. f4 {[%emt 0:04:05]} Qxh5 {[%emt 0:02:52]} 33. fxe5 {[%emt 0:01:37]} fxe5 {[%emt 0:00:29]} 34. Kg2 {[%emt 0:00:31]} Qg6 {[%emt 0:01:09]} 35. Qe2 {[%emt 0:01:50]} Kg8 {[%emt 0:01:19]} 36. Bc3 {[%emt 0:01:27]} Nf7 {[%emt 0:00:21]} 37. Rh1 {[%emt 0:03:38]} Nc8 {[%emt 0:00:52]} 38. Rcf1 {[%emt 0:01:59]} Ncd6 {[%emt 0:00:46]} 39. Nf2 {[%emt 0:01:14]} Re8 {[%emt 0:01:03]} 40. Qg4 {[%emt 0:00:00]} Re7 {[%emt 0:00:00]} 41. Re1 {[%emt 0:05:00]} Nb5 {[%emt 0:08:59]} 42. Bb2 {[%emt 0:01:55]} Nfd6 {[%emt 0:00:37]} 43. Qh5 {[%emt 0:04:05]} Qxh5 {[%emt 0:02:46]} 44. Rxh5 {[%emt 0:00:04]} Kh7 {[%emt 0:00:59]} 45. Ng4 {[%emt 0:11:12]} Kg6 {[%emt 0:02:43]} 46. Rh2 {[%emt 0:03:02]} Nd4 {[%emt 0:04:34]} 47. Bxd4 {[%emt 0:04:05]} cxd4 {[%emt 0:00:49]} 48. Nf2 {[%emt 0:00:30]} Nb5 {[%emt 0:01:31]} 49. Nd1 {[%emt 0:01:39]} Na3 {[%emt 0:04:42]} 50. Kf3 {[%emt 0:01:56]} Rf7+ {[%emt 0:01:15]} 51. Ke2 {[%emt 0:00:47]} b5 {[%emt 0:01:05]} 52. Nb2 {[%emt 0:02:09]} b4 {[%emt 0:01:05]} 53. Rc1 {[%emt 0:01:33]} Nb5 {[%emt 0:00:33]} 54. Rc6+ {[%emt 0:00:38]} Kh7 {[%emt 0:00:27]} 55. Na4 {[%emt 0:04:15]} Rf6 {[%emt 0:02:16]} 56. Rxf6 {[%emt 0:00:29]} Bxf6 {[%emt 0:00:05]} 57. Kd3 {[%emt 0:00:13]} Nc3 {[%emt 0:01:25]} 58. Nc5 {[%emt 0:01:57]} Be7 {[%emt 0:02:35]} 59. Ne6 {[%emt 0:00:53]} Nb5 {[%emt 0:00:25]} 60. Rc2 {[%emt 0:01:47]} Bd6 {[%emt 0:00:14]} 61. Nc5 {[%emt 0:01:50]} Nc3 {[%emt 0:00:35]} 62. Nb7 {[%emt 0:02:32]} Na4 {[%emt 0:01:23]} 63. Rc6 {[%emt 0:02:21]} Nc3 {[%emt 0:01:00]} 64. Nxa5 {[%emt 0:02:40]} Nxa2 {[%emt 0:00:32]} 65. Nc4 {[%emt 0:00:25]} Nc1+ {[%emt 0:00:29]} 66. Kd2 {[%emt 0:00:30]} Nb3+ {[%emt 0:00:16]} 67. Kc2 {[%emt 0:00:24]} Nc5 {[%emt 0:00:12]} 68. Nxd6 {[%emt 0:00:32]} cxd6 {[%emt 0:00:05]} 69. Rxd6 {[%emt 0:00:33]} b3+ {[%emt 0:00:31]} 70. Kc1 {[%emt 0:00:37]} Nxe4 {[%emt 0:00:56]} 71. Rb6 {[%emt 0:00:30]} Nc5 {[%emt 0:01:05]} 72. d6 {[%emt 0:00:24]} Kg8 {[%emt 0:00:31]} 73. Rb5 {[%emt 0:00:32]} b2+ {[%emt 0:00:34]} 74. Kxb2 {[%emt 0:00:13]} Nd7 {[%emt 0:00:12]} 75. Rb7 {[%emt 0:00:08]} Nc5 {[%emt 0:00:19]} 76. Rc7 {[%emt 0:00:45]} Ne6 {[%emt 0:00:52]} 77. Re7 {[%emt 0:00:06]} Nc5 {[%emt 0:00:40]} 78. d7 {[%emt 0:00:06]} Nb7 {[%emt 0:00:22]} 79. Kc2 {[%emt 0:00:56]} Kf8 {[%emt 0:00:24]} 80. Rxe5 {[%emt 0:01:09]} Kf7 {[%emt 0:00:25]} 81. Re8 {[%emt 0:00:10]} d3+ {[%emt 0:00:13]} 82. Kd2 {[%emt 0:00:13]} h5 {[%emt 0:00:24]} 83. Rb8 {[%emt 0:00:36]} 1-0

[Event "European Womens-ch 2025"]
[Site "Rhodes"]
[Date "2025.03.31"]
[Round "1.48"]
[White "Krkyasharyan, Sona"]
[Black "Schneider, Jana"]
[Result "*"]
[Annotator "RC"]
[ECO "D37"]
[WhiteElo "1989"]
[BlackElo "2251"]
[PlyCount "46"]
[EventDate "2025.03.29"]
[EventType "swiss"]
[EventCountry "GRE"]
[SourceTitle "playchess.com"]
[Source "ChessBase"]
[SourceQuality "1"]
[TimeControl "40/5400+30:1800+30"]

1. d4 {[%emt 0:00:02]} d5 {[%emt 0:00:19]} 2. c4 {[%emt 0:00:07]} e6 {[%emt 0:00:06]} 3. Nc3 {[%emt 0:00:05]} Nf6 {[%emt 0:00:07]} 4. Nf3 {[%emt 0:00:07]} Be7 {[%emt 0:00:11]} 5. Bf4 {[%emt 0:00:08]} O-O {[%emt 0:00:13]} 6. e3 {[%emt 0:00:05]} b6 {[%emt 0:00:11]} 7. Bd3 {[%emt 0:00:08]} dxc4 {[%emt 0:00:24]} 8. Bxc4 {[%emt 0:00:06]} Ba6 {[%emt 0:00:08]} 9. Qe2 {[%emt 0:00:47]} Bxc4 {[%emt 0:00:29]} 10. Qxc4 {[%emt 0:03:28]} c5 {[%emt 0:00:15]} 11. O-O {[%emt 0:05:14]} Nc6 {[%emt 0:19:41]} 12. Rfd1 {[%emt 0:02:04]} Qc8 {[%emt 0:02:20]} 13. dxc5 {[%emt 0:07:10]} bxc5 {[%emt 0:03:59]} 14. Rac1 {[%emt 0:02:23]} Rd8 {[%emt 0:05:08]} 15. Na4 {[%emt 0:21:13]} Rxd1+ {[%emt 0:06:38]} 16. Rxd1 {[%emt 0:00:01]} Nd5 {[%emt 0:00:43]} 17. Bg3 {[%emt 0:01:33]} Nb6 {[%emt 0:10:29]} 18. Qb5 {[%emt 0:04:00]} Nb4 {[%emt 0:00:30]} 19. a3 {[%emt 0:10:54]} Nxa4 {[%emt 0:03:11]} 20. Qxa4 {[%emt 0:00:14]} Nd5 {[%emt 0:00:08]} 21. e4 {[%emt 0:08:00]} Nb6 {[%emt 0:00:43]} 22. Qc2 {[%emt 0:00:22]} c4 {[%emt 0:01:07]} 23. Rc1 {[%emt 0:04:45]} Qa6 {[%emt 0:03:01]} *

[Event "European Womens-ch 2025"]
[Site "Rhodes"]
[Date "2025.03.31"]
[Round "1.49"]
[White "Schippke, Manon"]
[Black "Golsta, Madara"]
[Result "0-1"]
[Annotator "RC"]
[ECO "B76"]
[WhiteElo "2247"]
[BlackElo "1979"]
[PlyCount "68"]
[EventDate "2025.03.29"]
[EventType "swiss"]
[EventCountry "GRE"]
[SourceTitle "playchess.com"]
[Source "ChessBase"]
[SourceQuality "1"]
[TimeControl "40/5400+30:1800+30"]

1. e4 {[%emt 0:00:04]} c5 {[%emt 0:00:11]} 2. Nf3 {[%emt 0:00:04]} d6 {[%emt 0:00:12]} 3. d4 {[%emt 0:00:04]} cxd4 {[%emt 0:00:07]} 4. Nxd4 {[%emt 0:00:04]} Nf6 {[%emt 0:00:12]} 5. Nc3 {[%emt 0:00:03]} g6 {[%emt 0:00:15]} 6. Be3 {[%emt 0:00:07]} Bg7 {[%emt 0:00:10]} 7. f3 {[%emt 0:00:04]} Nc6 {[%emt 0:00:19]} 8. Bc4 {[%emt 0:00:08]} O-O {[%emt 0:02:29]} 9. Qe2 {[%emt 0:00:23]} Bd7 {[%emt 0:08:09]} 10. O-O-O {[%emt 0:05:03]} Na5 {[%emt 0:04:51]} 11. Bd3 {[%emt 0:09:16]} Rc8 {[%emt 0:21:11]} 12. g4 {[%emt 0:04:46]} e5 {[%emt 0:12:07]} 13. Ndb5 {[%emt 0:10:07]} Be6 {[%emt 0:04:22]} 14. Qf2 {[%emt 0:14:36]} Nc6 {[%emt 0:09:56]} 15. Be2 {[%emt 0:15:44]} Ne8 {[%emt 0:05:51]} 16. Bxa7 {[%emt 0:03:24]} Nxa7 {[%emt 0:02:42]} 17. Qxa7 {[%emt 0:00:03]} Ra8 {[%emt 0:02:54]} 18. Qxb7 {[%emt 0:00:54]} Bxa2 {[%emt 0:08:26]} 19. Nxa2 {[%emt 0:00:25]} Rxa2 {[%emt 0:00:10]} 20. Kb1 {[%emt 0:00:21]} Ra8 {[%emt 0:05:10]} 21. g5 {[%emt 0:05:26]} Qa5 {[%emt 0:02:41]} 22. Na3 {[%emt 0:00:07]} Nc7 {[%emt 0:00:43]} 23. Qc6 {[%emt 0:07:32]} Rfb8 {[%emt 0:00:35]} 24. Kc1 {[%emt 0:04:38]} Rxb2 {[%emt 0:00:25]} 25. Qxa8+ {[%emt 0:00:19]} Qxa8 {[%emt 0:00:26]} 26. Kxb2 {[%emt 0:00:04]} d5 {[%emt 0:00:19]} 27. exd5 {[%emt 0:00:26]} e4+ {[%emt 0:00:30]} 28. Kb3 {[%emt 0:00:54]} Qb7+ {[%emt 0:00:16]} 29. Ka4 {[%emt 0:00:33]} Nxd5 {[%emt 0:01:53]} 30. Nb5 {[%emt 0:00:08]} Qc6 {[%emt 0:00:52]} 31. Rd2 {[%emt 0:01:13]} e3 {[%emt 0:01:30]} 32. Rd3 {[%emt 0:00:09]} Qxc2+ {[%emt 0:00:09]} 33. Ka5 {[%emt 0:00:06]} Qxe2 {[%emt 0:01:07]} 34. Rxd5 {[%emt 0:00:06]} Qa2+ {[%emt 0:00:03]} 0-1

[Event "European Womens-ch 2025"]
[Site "Rhodes"]
[Date "2025.03.31"]
[Round "1.50"]
[White "Golsta, Ramona"]
[Black "Urh, Zala"]
[Result "0-1"]
[Annotator "RC"]
[ECO "D94"]
[WhiteElo "1943"]
[BlackElo "2244"]
[PlyCount "54"]
[EventDate "2025.03.29"]
[EventType "swiss"]
[EventCountry "GRE"]
[SourceTitle "playchess.com"]
[Source "ChessBase"]
[SourceQuality "1"]
[TimeControl "40/5400+30:1800+30"]

1. d4 {[%emt 0:00:01]} Nf6 {[%emt 0:00:10]} 2. c4 {[%emt 0:00:54]} g6 {[%emt 0:00:10]} 3. Nf3 {[%emt 0:00:46]} Bg7 {[%emt 0:00:30]} 4. Nc3 {[%emt 0:00:21]} d5 {[%emt 0:00:08]} 5. e3 {[%emt 0:03:00]} O-O {[%emt 0:02:14]} 6. cxd5 {[%emt 0:05:33]} Nxd5 {[%emt 0:00:13]} 7. Be2 {[%emt 0:00:53]} c5 {[%emt 0:06:14]} 8. O-O {[%emt 0:10:36]} Nc6 {[%emt 0:04:34]} 9. Bc4 {[%emt 0:09:01]} Nb6 {[%emt 0:05:58]} 10. Qe2 {[%emt 0:20:57]} cxd4 {[%emt 0:04:25]} 11. Rd1 {[%emt 0:07:02]} Bg4 {[%emt 0:12:44]} 12. Bb5 {[%emt 0:04:51]} e5 {[%emt 0:02:01]} 13. Bxc6 {[%emt 0:06:06]} bxc6 {[%emt 0:00:13]} 14. exd4 {[%emt 0:00:12]} exd4 {[%emt 0:00:40]} 15. h3 {[%emt 0:05:35]} Re8 {[%emt 0:07:02]} 16. hxg4 {[%emt 0:16:41]} Rxe2 {[%emt 0:00:14]} 17. Nxe2 {[%emt 0:00:04]} c5 {[%emt 0:00:55]} 18. Rb1 {[%emt 0:00:25]} a5 {[%emt 0:01:17]} 19. b3 {[%emt 0:00:20]} Nd5 {[%emt 0:05:04]} 20. Bb2 {[%emt 0:00:34]} a4 {[%emt 0:03:13]} 21. b4 {[%emt 0:00:28]} Nxb4 {[%emt 0:07:54]} 22. Bxd4 {[%emt 0:01:07]} Bxd4 {[%emt 0:00:55]} 23. Nexd4 {[%emt 0:02:29]} Nxa2 {[%emt 0:02:06]} 24. Nc6 {[%emt 0:01:18]} Qf6 {[%emt 0:07:43]} 25. Rb6 {[%emt 0:00:48]} Nb4 {[%emt 0:00:53]} 26. g5 {[%emt 0:00:44]} Qxc6 {[%emt 0:00:26]} 27. Rxc6 {[%emt 0:00:38]} Nxc6 {[%emt 0:00:05]} 0-1

[Event "European Womens-ch 2025"]
[Site "Rhodes"]
[Date "2025.03.31"]
[Round "1.51"]
[White "Wikar, Martyna"]
[Black "Karadas, Hena"]
[Result "1-0"]
[Annotator "RC"]
[ECO "B30"]
[WhiteElo "2239"]
[BlackElo "1931"]
[PlyCount "85"]
[EventDate "2025.03.29"]
[EventType "swiss"]
[EventCountry "GRE"]
[SourceTitle "playchess.com"]
[Source "ChessBase"]
[SourceQuality "1"]
[TimeControl "40/5400+30:1800+30"]

1. e4 {[%emt 0:00:08]} c5 {[%emt 0:00:09]} 2. Nf3 {[%emt 0:00:11]} Nc6 {[%emt 0:00:18]} 3. Bb5 {[%emt 0:00:20]} Nf6 {[%emt 0:00:15]} 4. Bxc6 {[%emt 0:02:54]} dxc6 {[%emt 0:00:24]} 5. d3 {[%emt 0:00:31]} Bg4 {[%emt 0:00:47]} 6. h3 {[%emt 0:01:22]} Bh5 {[%emt 0:00:09]} 7. Nbd2 {[%emt 0:00:53]} Qc7 {[%emt 0:06:15]} 8. g4 {[%emt 0:06:14]} Bg6 {[%emt 0:00:19]} 9. Qe2 {[%emt 0:02:29]} e5 {[%emt 0:03:10]} 10. Nc4 {[%emt 0:00:36]} Nd7 {[%emt 0:00:46]} 11. a4 {[%emt 0:02:34]} Be7 {[%emt 0:03:43]} 12. Bd2 {[%emt 0:09:03]} f6 {[%emt 0:12:16]} 13. Nh4 {[%emt 0:10:52]} Nf8 {[%emt 0:03:34]} 14. Nf5 {[%emt 0:00:38]} Ne6 {[%emt 0:01:32]} 15. h4 {[%emt 0:00:20]} h5 {[%emt 0:06:09]} 16. a5 {[%emt 0:08:46]} O-O-O {[%emt 0:05:24]} 17. Be3 {[%emt 0:10:45]} Kb8 {[%emt 0:08:33]} 18. f3 {[%emt 0:04:17]} Bf7 {[%emt 0:10:22]} 19. Qf2 {[%emt 0:03:27]} Bf8 {[%emt 0:03:35]} 20. Ng3 {[%emt 0:08:23]} hxg4 {[%emt 0:03:50]} 21. fxg4 {[%emt 0:00:01]} Nd4 {[%emt 0:01:02]} 22. Nf5 {[%emt 0:06:59]} Bxc4 {[%emt 0:03:47]} 23. dxc4 {[%emt 0:00:53]} Qf7 {[%emt 0:02:30]} 24. b3 {[%emt 0:00:57]} g6 {[%emt 0:02:06]} 25. Ng3 {[%emt 0:01:27]} Qe6 {[%emt 0:02:27]} 26. O-O-O {[%emt 0:02:02]} Be7 {[%emt 0:02:02]} 27. Bxd4 {[%emt 0:11:17]} cxd4 {[%emt 0:00:25]} 28. Qf3 {[%emt 0:00:17]} Bb4 {[%emt 0:03:09]} 29. Ne2 {[%emt 0:02:59]} Bxa5 {[%emt 0:01:48]} 30. h5 {[%emt 0:00:12]} Qe7 {[%emt 0:04:29]} 31. Kb2 {[%emt 0:00:13]} gxh5 {[%emt 0:02:02]} 32. gxh5 {[%emt 0:00:53]} Rh6 {[%emt 0:00:57]} 33. Rd3 {[%emt 0:01:37]} Rdh8 {[%emt 0:01:36]} 34. Qg4 {[%emt 0:01:32]} Qf7 {[%emt 0:03:22]} 35. Rdh3 {[%emt 0:00:57]} a6 {[%emt 0:01:28]} 36. Qf5 {[%emt 0:00:49]} Rg8 {[%emt 0:00:30]} 37. Nxd4 {[%emt 0:00:32]} exd4 {[%emt 0:01:52]} 38. Qf4+ {[%emt 0:00:35]} Qc7 {[%emt 0:00:17]} 39. Qxh6 {[%emt 0:00:02]} Bc3+ {[%emt 0:00:15]} 40. Kb1 {[%emt 0:00:00]} Qa5 {[%emt 0:00:00]} 41. Rxc3 {[%emt 0:01:12]} dxc3 {[%emt 0:01:06]} 42. Qxf6 {[%emt 0:02:06]} Qb4 {[%emt 0:12:55]} 43. h6 {[%emt 0:02:02]} 1-0

[Event "European Womens-ch 2025"]
[Site "Rhodes"]
[Date "2025.03.31"]
[Round "1.52"]
[White "Alexandri, Vasiliki"]
[Black "Gevorgyan, Maria"]
[Result "0-1"]
[Annotator "RC"]
[ECO "E59"]
[WhiteElo "1927"]
[BlackElo "2234"]
[PlyCount "52"]
[EventDate "2025.03.29"]
[EventType "swiss"]
[EventCountry "GRE"]
[SourceTitle "playchess.com"]
[Source "ChessBase"]
[SourceQuality "1"]
[TimeControl "40/5400+30:1800+30"]

1. d4 {[%emt 0:00:04]} Nf6 {[%emt 0:00:21]} 2. c4 {[%emt 0:00:15]} e6 {[%emt 0:00:21]} 3. Nc3 {[%emt 0:00:11]} Bb4 {[%emt 0:00:16]} 4. e3 {[%emt 0:00:16]} O-O {[%emt 0:00:17]} 5. Bd3 {[%emt 0:00:16]} d5 {[%emt 0:00:17]} 6. a3 {[%emt 0:00:17]} Bxc3+ {[%emt 0:01:02]} 7. bxc3 {[%emt 0:00:09]} c5 {[%emt 0:00:31]} 8. Nf3 {[%emt 0:01:05]} Nc6 {[%emt 0:01:25]} 9. O-O {[%emt 0:01:27]} Qc7 {[%emt 0:00:28]} 10. Bb2 {[%emt 0:06:05]} dxc4 {[%emt 0:04:40]} 11. Bxc4 {[%emt 0:00:24]} b6 {[%emt 0:00:03]} 12. Be2 {[%emt 0:03:53]} Rd8 {[%emt 0:01:34]} 13. Qc2 {[%emt 0:02:34]} Ne7 {[%emt 0:03:31]} 14. c4 {[%emt 0:04:08]} Bb7 {[%emt 0:02:06]} 15. Rfd1 {[%emt 0:06:46]} Ng6 {[%emt 0:11:39]} 16. Rac1 {[%emt 0:29:18]} cxd4 {[%emt 0:05:33]} 17. exd4 {[%emt 0:03:22]} Nf4 {[%emt 0:01:56]} 18. Bf1 {[%emt 0:13:17]} Bxf3 {[%emt 0:11:06]} 19. gxf3 {[%emt 0:00:03]} N6h5 {[%emt 0:00:14]} 20. d5 {[%emt 0:06:24]} Qe7 {[%emt 0:04:58]} 21. Qe4 {[%emt 0:05:13]} Qg5+ {[%emt 0:01:01]} 22. Kh1 {[%emt 0:00:03]} exd5 {[%emt 0:00:43]} 23. cxd5 {[%emt 0:00:52]} Re8 {[%emt 0:00:06]} 24. Qd4 {[%emt 0:01:34]} Rad8 {[%emt 0:00:11]} 25. d6 {[%emt 0:01:26]} Re6 {[%emt 0:00:21]} 26. d7 {[%emt 0:02:18]} Rg6 {[%emt 0:00:06]} 0-1

[Event "European Womens-ch 2025"]
[Site "Rhodes"]
[Date "2025.03.31"]
[Round "1.53"]
[White "Jarocka, Liwia"]
[Black "Nenova, Andzhelika"]
[Result "1-0"]
[Annotator "RC"]
[ECO "B30"]
[WhiteElo "2231"]
[BlackElo "1903"]
[PlyCount "81"]
[EventDate "2025.03.29"]
[EventType "swiss"]
[EventCountry "GRE"]
[SourceTitle "playchess.com"]
[Source "ChessBase"]
[SourceQuality "1"]
[TimeControl "40/5400+30:1800+30"]

1. e4 {[%emt 0:00:06]} c5 {[%emt 0:00:08]} 2. Nf3 {[%emt 0:00:10]} Nc6 {[%emt 0:00:07]} 3. Bb5 {[%emt 0:00:13]} e5 {[%emt 0:00:13]} 4. O-O {[%emt 0:00:58]} Bd6 {[%emt 0:00:24]} 5. c3 {[%emt 0:02:33]} a6 {[%emt 0:00:16]} 6. Bxc6 {[%emt 0:00:45]} dxc6 {[%emt 0:00:06]} 7. d4 {[%emt 0:00:14]} exd4 {[%emt 0:00:17]} 8. cxd4 {[%emt 0:00:08]} Bg4 {[%emt 0:00:11]} 9. dxc5 {[%emt 0:09:23]} Bxc5 {[%emt 0:00:14]} 10. Qb3 {[%emt 0:01:06]} Qb6 {[%emt 0:05:17]} 11. Qc3 {[%emt 0:01:38]} O-O-O {[%emt 0:20:03]} 12. Nbd2 {[%emt 0:06:23]} Nf6 {[%emt 0:01:16]} 13. Qc2 {[%emt 0:11:50]} Rhe8 {[%emt 0:07:18]} 14. Nc4 {[%emt 0:01:42]} Qc7 {[%emt 0:02:18]} 15. b4 {[%emt 0:19:33]} Bxf3 {[%emt 0:10:13]} 16. bxc5 {[%emt 0:03:48]} Bxe4 {[%emt 0:01:17]} 17. Qb2 {[%emt 0:04:20]} Ng4 {[%emt 0:12:26]} 18. Nd6+ {[%emt 0:00:34]} Rxd6 {[%emt 0:15:17]} 19. Bf4 {[%emt 0:00:13]} Qd7 {[%emt 0:03:21]} 20. cxd6 {[%emt 0:01:15]} g5 {[%emt 0:01:17]} 21. Bg3 {[%emt 0:02:29]} f5 {[%emt 0:01:31]} 22. f3 {[%emt 0:00:49]} f4 {[%emt 0:01:19]} 23. Be1 {[%emt 0:04:49]} Bd3 {[%emt 0:05:12]} 24. fxg4 {[%emt 0:00:52]} Bxf1 {[%emt 0:00:28]} 25. Kxf1 {[%emt 0:00:12]} Qxd6 {[%emt 0:00:23]} 26. Kg1 {[%emt 0:02:56]} Qe6 {[%emt 0:04:02]} 27. Rb1 {[%emt 0:02:17]} b5 {[%emt 0:02:03]} 28. Rc1 {[%emt 0:00:51]} Qxg4 {[%emt 0:01:40]} 29. Rxc6+ {[%emt 0:03:27]} Kb7 {[%emt 0:00:16]} 30. Rc1 {[%emt 0:00:45]} Qe2 {[%emt 0:01:29]} 31. Qc3 {[%emt 0:05:55]} Qe3+ {[%emt 0:00:32]} 32. Qxe3 {[%emt 0:00:37]} Rxe3 {[%emt 0:00:27]} 33. Bb4 {[%emt 0:00:20]} Re2 {[%emt 0:02:16]} 34. a3 {[%emt 0:00:06]} Kb6 {[%emt 0:00:19]} 35. Re1 {[%emt 0:00:23]} Rxe1+ {[%emt 0:01:56]} 36. Bxe1 {[%emt 0:00:02]} Kc5 {[%emt 0:00:10]} 37. Kf2 {[%emt 0:00:43]} Kc4 {[%emt 0:00:30]} 38. Kf3 {[%emt 0:00:43]} Kd3 {[%emt 0:02:02]} 39. Bb4 {[%emt 0:00:20]} Kd4 {[%emt 0:00:51]} 40. Be7 {[%emt 0:00:00]} h6 {[%emt 0:00:00]} 41. Bf8 {[%emt 0:01:15]} 1-0

[Event "European Womens-ch 2025"]
[Site "Rhodes"]
[Date "2025.03.31"]
[Round "1.54"]
[White "Silva, Ana Ines Teixeira Da"]
[Black "Calzetta Ruiz, Monica"]
[Result "1/2-1/2"]
[Annotator "RC"]
[ECO "B22"]
[WhiteElo "1893"]
[BlackElo "2230"]
[PlyCount "99"]
[EventDate "2025.03.29"]
[EventType "swiss"]
[EventCountry "GRE"]
[SourceTitle "playchess.com"]
[Source "ChessBase"]
[SourceQuality "1"]
[TimeControl "40/5400+30:1800+30"]

1. e4 {[%emt 0:00:03]} c5 {[%emt 1:31:00]} 2. Nf3 {[%emt 0:00:08]} Nc6 {[%emt 0:00:00]} 3. c3 {[%emt 0:00:34]} d5 {[%emt 0:00:00]} 4. exd5 {[%emt 0:00:10]} Qxd5 {[%emt 0:00:00]} 5. d4 {[%emt 0:00:14]} Nf6 {[%emt 0:00:00]} 6. dxc5 {[%emt 0:00:39]} Qxd1+ {[%emt 0:00:00]} 7. Kxd1 {[%emt 0:00:07]} Bg4 {[%emt 0:00:00]} 8. Nbd2 {[%emt 0:05:24]} e5 {[%emt 0:00:00]} 9. b4 {[%emt 0:06:39]} e4 {[%emt 0:00:00]} 10. h3 {[%emt 0:01:53]} exf3 {[%emt 0:00:00]} 11. hxg4 {[%emt 0:03:58]} Nxg4 {[%emt 0:00:00]} 12. Ne4 {[%emt 0:10:18]} fxg2 {[%emt 0:00:00]} 13. Bxg2 {[%emt 0:00:29]} f5 {[%emt 0:00:00]} 14. f3 {[%emt 0:13:43]} Nge5 {[%emt 0:00:00]} 15. Ng5 {[%emt 0:12:50]} Be7 {[%emt 0:00:00]} 16. Kc2 {[%emt 0:06:21]} h6 {[%emt 0:00:00]} 17. f4 {[%emt 0:12:33]} Ng4 {[%emt 0:08:00]} 18. Ne6 {[%emt 0:05:41]} Kf7 {[%emt 0:00:00]} 19. Bxc6 {[%emt 0:01:42]} bxc6 {[%emt 0:00:00]} 20. Nd4 {[%emt 0:00:12]} a5 {[%emt 0:00:00]} 21. Nxc6 {[%emt 0:06:05]} axb4 {[%emt 0:00:00]} 22. cxb4 {[%emt 0:00:41]} Bf6 {[%emt 0:00:00]} 23. Bb2 {[%emt 0:02:02]} Ne3+ {[%emt 0:00:00]} 24. Kb3 {[%emt 0:02:05]} Nd5 {[%emt 0:00:00]} 25. Bxf6 {[%emt 0:02:11]} Kxf6 {[%emt 0:00:00]} 26. Rhd1 {[%emt 0:02:18]} Nxf4 {[%emt 0:00:23]} 27. Rd6+ {[%emt 0:00:18]} Kf7 {[%emt 0:03:07]} 28. Ne5+ {[%emt 0:00:46]} Kg8 {[%emt 0:00:29]} 29. c6 {[%emt 0:01:12]} Kh7 {[%emt 0:00:03]} 30. b5 {[%emt 0:01:30]} Rhe8 {[%emt 0:00:22]} 31. Nc4 {[%emt 0:00:54]} Ne6 {[%emt 0:00:52]} 32. b6 {[%emt 0:01:20]} Rac8 {[%emt 0:00:24]} 33. Kb4 {[%emt 0:00:54]} f4 {[%emt 0:00:34]} 34. b7 {[%emt 0:00:35]} Rb8 {[%emt 0:00:22]} 35. Nb6 {[%emt 0:00:43]} Nc7 {[%emt 0:01:28]} 36. Nd7 {[%emt 0:00:31]} Rbd8 {[%emt 0:00:10]} 37. b8=Q {[%emt 0:00:36]} Na6+ {[%emt 0:00:06]} 38. Kb5 {[%emt 0:00:28]} Nxb8 {[%emt 0:00:05]} 39. Rad1 {[%emt 0:00:24]} Nxd7 {[%emt 0:00:25]} 40. cxd7 {[%emt 0:00:00]} Re2 {[%emt 0:00:00]} 41. Rf1 {[%emt 0:11:47]} g5 {[%emt 0:15:04]} 42. Rh1 {[%emt 0:02:45]} Kg7 {[%emt 0:18:36]} 43. Rhxh6 {[%emt 0:10:26]} Rxd7 {[%emt 0:00:00]} 44. Rdg6+ {[%emt 0:00:43]} Kf7 {[%emt 0:00:00]} 45. Rxg5 {[%emt 0:00:39]} Rxa2 {[%emt 0:00:00]} 46. Rf5+ {[%emt 0:03:13]} Kg7 {[%emt 0:00:00]} 47. Rh4 {[%emt 0:01:21]} Rb7+ {[%emt 0:00:00]} 48. Kc6 {[%emt 0:01:33]} Rf7 {[%emt 0:00:00]} 49. Rxf7+ {[%emt 0:00:13]} Kxf7 {[%emt 0:00:00]} 50. Rxf4+ {[%emt 0:03:39]} 1/2-1/2